fUSD/lending_fUSD_20240327
["ID","MTS","AMOUNT","RATE_DAILY","PERIOD"]
[320815074,1711567850083,-500.0,0.00054246,120]
[320815075,1711567850093,-505.17305877,0.00054246,120]
[320815076,1711567850102,-500.0,0.00054246,120]
[320815077,1711567850112,-500.0,0.00054246,120]
[320815078,1711567850122,-500.0,0.00054246,120]
[320815079,1711567850131,-500.0,0.00054246,120]
[320815080,1711567850140,-500.0,0.00054246,120]
[320815081,1711567850150,-643.68,0.00054246,120]
[320815082,1711567850159,-500.0,0.00054246,120]
[320815083,1711567850169,-500.0,0.00054246,120]
[320815084,1711567850179,-500.0,0.00054246,120]
[320815085,1711567850189,-500.0,0.00054246,120]
[320815086,1711567850198,-501.07610569,0.00054246,120]
[320815087,1711567850207,-500.0,0.00054246,120]
[320815088,1711567850217,-500.0,0.00054246,120]
[320815089,1711567850227,-500.0,0.00054246,120]
[320815090,1711567850236,-500.0,0.00054246,120]
[320815091,1711567850244,-500.83089865,0.00054246,120]
[320815092,1711567850253,-500.0,0.00054246,120]
[320815093,1711567850262,-500.0,0.00054246,120]
[320815094,1711567850271,-500.0,0.00054246,120]
[320815095,1711567850281,-500.0,0.00054246,120]
[320815096,1711567850290,-500.0,0.00054246,120]
[320815097,1711567850300,-500.0,0.00054246,120]
[320815098,1711567850310,-500.0,0.00054246,120]
[320815099,1711567850319,-500.0,0.00054246,120]
[320815100,1711567850329,-500.0,0.00054246,120]
[320815101,1711567850339,-504.58401806,0.00054246,120]
[320815102,1711567850348,-500.0,0.00054246,120]
[320815103,1711567850357,-552.62,0.00054246,120]
[320815104,1711567850367,-500.0,0.00054246,120]
[320815105,1711567850376,-500.0,0.00054246,120]
[320815106,1711567850486,-500.0,0.00054246,120]
[320815107,1711567850508,-500.0,0.00054246,120]
[320815108,1711567850518,-500.0,0.00054246,120]
[320815109,1711567850530,-500.0,0.00054246,120]
[320815110,1711567850541,-500.0,0.00054246,120]
[320815111,1711567850551,-211.52,0.00054246,120]
[320815112,1711567850563,-500.0,0.00054246,120]
[320815113,1711567850573,-500.0,0.00054246,120]
[320815114,1711567850583,-500.0,0.00054246,120]
[320815115,1711567850594,-500.0,0.00054246,120]
[320815116,1711567850603,-500.0,0.00054246,120]
[320815117,1711567850614,-500.0,0.00054246,120]
[320815118,1711567850623,-500.0,0.00054246,120]
[320815119,1711567850633,-500.0,0.00054246,120]
[320815120,1711567850643,-500.0,0.00054246,120]
[320815121,1711567850653,-476.85,0.00054246,120]
[320815122,1711567850662,-500.0,0.00054246,120]
[320815123,1711567850673,-500.0,0.00054246,120]
[320815124,1711567850683,-500.0,0.00054246,120]
[320815125,1711567850693,-500.0,0.00054246,120]
[320815126,1711567850703,-519.26,0.00054246,120]
[320815127,1711567850713,-500.0,0.00054246,120]
[320815128,1711567850723,-500.0,0.00054246,120]
[320815129,1711567850733,-500.0,0.00054246,120]
[320815130,1711567850744,-500.0,0.00054246,120]
[320815131,1711567850754,-500.0,0.00054246,120]
[320815132,1711567850764,-500.0,0.00054246,120]
[320815133,1711567850776,-500.0,0.00054246,120]
[320815134,1711567850786,-505.28466495,0.00054246,120]
[320815135,1711567850798,-500.0,0.00054246,120]
[320815136,1711567850808,-500.0,0.00054246,120]
[320815137,1711567850817,-666.43,0.00054246,120]
[320815138,1711567850826,-500.0,0.00054246,120]
[320815139,1711567850835,-503.96584081,0.00054246,120]
[320815140,1711567850845,-154.16607696,0.00054246,120]
[320815141,1711567850856,-500.0,0.00054246,120]
[320815142,1711567850866,-500.0,0.00054246,120]
[320815143,1711567850876,-500.0,0.00054246,120]
[320815144,1711567850886,-500.0,0.00054246,120]
[320815145,1711567850895,-500.0,0.00054246,120]
[320815146,1711567850906,-500.0,0.00054246,120]
[320815147,1711567850915,-500.0,0.00054246,120]
[320815148,1711567850926,-500.0,0.00054246,120]
[320815149,1711567850936,-500.0,0.00054246,120]
[320815150,1711567850945,-500.0,0.00054246,120]
[320815151,1711567850955,-500.0,0.00054246,120]
[320815152,1711567850965,-500.0,0.00054246,120]
[320815153,1711567850975,-500.0,0.00054246,120]
[320815154,1711567850986,-500.0,0.00054246,120]
[320815155,1711567850996,-288.35829138,0.00054246,120]
[320815156,1711567851006,-500.0,0.00054246,120]
[320815157,1711567851017,-1102.1,0.00054246,120]
[320815158,1711567851027,-500.0,0.00054246,120]
[320815159,1711567851037,-500.0,0.00054246,120]
[320815160,1711567851047,-500.0,0.00054246,120]
[320815161,1711567851057,-500.0,0.00054246,120]
[320815162,1711567851067,-500.0,0.00054246,120]
[320815163,1711567851078,-500.0,0.00054246,120]
[320815164,1711567851088,-500.0,0.00054246,120]
[320815165,1711567851097,-500.0,0.00054246,120]
[320815166,1711567851107,-500.0,0.00054246,120]
[320815167,1711567851116,-500.0,0.00054246,120]
[320815168,1711567851127,-500.0,0.00054246,120]
[320815169,1711567851137,-646.73,0.00054246,120]
[320815170,1711567851146,-500.0,0.00054246,120]
[320815171,1711567851156,-500.0,0.00054246,120]
[320815172,1711567851165,-500.0,0.00054246,30]
[320815173,1711567851176,-500.0,0.00054246,120]
[320815174,1711567851185,-508.96078558,0.00054246,120]
[320815175,1711567851195,-500.0,0.00054246,120]
[320815176,1711567851204,-569.40070158,0.00054246,120]
[320815177,1711567851213,-500.0,0.00054246,120]
[320815178,1711567851223,-911.58,0.00054246,120]
[320815179,1711567851232,-500.0,0.00054246,120]
[320815180,1711567851242,-500.0,0.00054246,120]
[320815181,1711567851252,-621.66,0.00054246,120]
[320815182,1711567851261,-500.0,0.00054246,120]
[320815183,1711567851272,-500.0,0.00054246,120]
[320815184,1711567851282,-500.0,0.00054246,120]
[320815185,1711567851292,-500.0,0.00054246,120]
[320815186,1711567851301,-500.0,0.00054246,120]
[320815187,1711567851312,-500.0,0.00054246,120]
[320815188,1711567851322,-500.0,0.00054246,120]
[320815189,1711567851331,-500.0,0.00054246,120]
[320815190,1711567851341,-500.0,0.00054246,120]
[320815191,1711567851351,-518.93,0.00054246,120]
[320815192,1711567851360,-500.0,0.00054246,120]
[320815193,1711567851370,-500.0,0.00054246,120]
[320815194,1711567851381,-500.0,0.00054246,120]
[320815195,1711567851390,-500.0,0.00054246,120]
[320815196,1711567851401,-500.0,0.00054246,120]
[320815197,1711567851411,-720.36,0.00054246,120]
[320815198,1711567851421,-500.0,0.00054246,120]
[320815199,1711567851434,-500.0,0.00054246,120]
[320815200,1711567851444,-1022.55,0.00054246,120]
[320815201,1711567851455,-500.0,0.00054246,120]
[320815202,1711567851465,-500.0,0.00054246,2]
[320815203,1711567851476,-500.0,0.00054246,120]
[320815204,1711567851487,-500.0,0.00054246,120]
[320815205,1711567851498,-500.0,0.00054246,120]
[320815206,1711567851508,-301.59,0.00054246,120]
[320815207,1711567851518,-784.13,0.00054246,120]
[320815208,1711567851528,-500.0,0.00054246,120]
[320815209,1711567851539,-500.0,0.00054246,120]
[320815210,1711567851550,-652.18,0.00054246,120]
[320815211,1711567851564,-500.0,0.00054246,120]
[320815212,1711567851575,-519.94,0.00054246,120]
[320815213,1711567851585,-500.0,0.00054246,120]
[320815214,1711567851596,-502.21435445,0.00054246,120]
[320815215,1711567851607,-803.46,0.00054246,120]
[320815216,1711567851617,-500.0,0.00054246,120]
[320815217,1711567851628,-500.0,0.00054246,120]
[320815218,1711567851642,-500.0,0.00054246,120]
[320815219,1711567851656,-500.0,0.00054246,120]
[320815220,1711567851667,-504.05578351,0.00054246,120]
[320815221,1711567851680,-500.0,0.00054246,120]
[320815222,1711567851692,-500.0,0.00054246,120]
[320815223,1711567851705,-501.76623515,0.00054246,120]
[320815224,1711567851716,-500.0,0.00054246,120]
[320815225,1711567851729,-670.26,0.00054246,120]
[320815226,1711567851740,-500.0,0.00054246,120]
[320815227,1711567851751,-500.0,0.00054246,120]
[320815228,1711567851760,-500.0,0.00054246,120]
[320815229,1711567851770,-500.0,0.00054246,120]
[320815230,1711567851781,-503.07796704,0.00054246,120]
[320815231,1711567851794,-972.38,0.00054246,120]
[320815232,1711567851805,-500.0,0.00054246,120]
[320815233,1711567851815,-1491.92,0.00054246,120]
[320815234,1711567851825,-237.21709715,0.00054246,120]
[320815235,1711567851834,-500.0,0.00054246,120]
[320815236,1711567851845,-500.0,0.00054246,120]
[320815237,1711567851855,-500.0,0.00054246,120]
[320815238,1711567851866,-500.0,0.00054246,120]
[320815239,1711567851876,-500.0,0.00054246,120]
[320815240,1711567851887,-500.0,0.00054246,120]
[320815241,1711567851897,-500.0,0.00054246,120]
[320815242,1711567851907,-500.0,0.00054246,120]
[320815243,1711567851919,-500.0,0.00054246,120]
[320815244,1711567851930,-500.0,0.00054246,120]
[320815245,1711567851941,-501.80370438,0.00054246,120]
[320815246,1711567851951,-500.0,0.00054246,120]
[320815247,1711567851962,-500.0,0.00054246,120]
[320815248,1711567851972,-500.0,0.00054246,120]
[320815249,1711567851982,-500.0,0.00054246,120]
[320815250,1711567851992,-500.0,0.00054246,120]
[320815251,1711567852002,-500.0,0.00054246,120]
[320815252,1711567852013,-216.66,0.00054246,120]
[320815253,1711567852024,-500.0,0.00054246,120]
[320815254,1711567852034,-500.0,0.00054246,120]
[320815255,1711567852046,-500.0,0.00054246,120]
[320815256,1711567852057,-500.0,0.00054246,120]
[320815257,1711567852067,-500.0,0.00054246,120]
[320815258,1711567852077,-500.0,0.00054246,120]
[320815259,1711567852086,-500.0,0.00054246,120]
[320815260,1711567852097,-500.0,0.00054246,120]
[320815261,1711567852106,-500.0,0.00054246,120]
[320815262,1711567852115,-500.0,0.00054246,120]
[320815263,1711567852126,-500.0,0.00054246,120]
[320815264,1711567852136,-500.0,0.00054246,120]
[320815265,1711567852148,-591.87,0.00054246,120]
[320815266,1711567852159,-341.28964398,0.00054246,120]
[320815267,1711567852170,-500.0,0.00054246,120]
[320815268,1711567852181,-500.0,0.00054246,120]
[320815269,1711567852190,-500.0,0.00054246,120]
[320815270,1711567852201,-500.0,0.00054246,120]
[320815271,1711567852212,-500.0,0.00054246,120]
[320815272,1711567852222,-500.0,0.00054246,120]
[320815273,1711567852232,-500.0,0.00054246,120]
[320815274,1711567852243,-500.59,0.00054246,120]
[320815275,1711567852253,-500.0,0.00054246,120]
[320815276,1711567852263,-500.0,0.00054246,15]
[320815277,1711567852273,-500.0,0.00054246,120]
[320815278,1711567852283,-500.0,0.00054246,120]
[320815279,1711567852295,-500.0,0.00054246,120]
[320815280,1711567852305,-500.0,0.00054246,120]
[320815281,1711567852315,-500.0,0.00054246,120]
[320815282,1711567852324,-569.16,0.00054246,120]
[320815283,1711567852334,-500.0,0.00054246,120]
[320815284,1711567852344,-500.0,0.00054246,120]
[320815285,1711567852354,-500.0,0.00054246,120]
[320815286,1711567852364,-500.0,0.00054246,120]
[320815287,1711567852376,-583.0,0.00054246,120]
[320815288,1711567852387,-500.0,0.00054246,120]
[320815289,1711567852398,-500.0,0.00054246,120]
[320815290,1711567852410,-500.0,0.00054246,120]
[320815291,1711567852420,-854.05,0.00054246,120]
[320815292,1711567852534,-500.0,0.00054246,120]
[320815293,1711567852547,-500.0,0.00054246,120]
[320815294,1711567852560,-500.0,0.00054246,120]
[320815295,1711567852573,-804.77,0.00054246,120]
[320815296,1711567852587,-500.0,0.00054246,120]
[320815297,1711567852599,-500.0,0.00054246,120]
[320815298,1711567852612,-500.0,0.00054246,120]
[320815299,1711567852624,-500.0,0.00054246,120]
[320815300,1711567852636,-500.0,0.00054246,120]
[320815301,1711567852648,-500.0,0.00054246,120]
[320815302,1711567852660,-500.0,0.00054246,120]
[320815303,1711567852673,-500.0,0.00054246,120]
[320815304,1711567852687,-500.0,0.00054246,120]
[320815305,1711567852697,-500.0,0.00054246,120]
[320815306,1711567852708,-500.0,0.00054246,120]
[320815307,1711567852722,-506.75473075,0.00054246,120]
[320815308,1711567852733,-500.0,0.00054246,120]
[320815309,1711567852746,-500.0,0.00054246,120]
[320815310,1711567852758,-613.5,0.00054246,120]
[320815311,1711567852770,-500.0,0.00054246,120]
[320815312,1711567852781,-500.0,0.00054246,120]
[320815313,1711567852794,-500.0,0.00054246,120]
[320815314,1711567852805,-787.4,0.00054246,120]
[320815315,1711567852816,-698.09,0.00054246,120]
[320815316,1711567852827,-500.0,0.00054246,120]
[320815317,1711567852837,-500.0,0.00054246,120]
[320815318,1711567852847,-500.0,0.00054246,120]
[320815319,1711567852859,-500.0,0.00054246,120]
[320815320,1711567852870,-642.93,0.00054246,120]
[320815321,1711567852881,-555.83,0.00054246,120]
[320815322,1711567852895,-500.0,0.00054246,120]
[320815323,1711567852907,-1855.05,0.00054246,120]
[320815324,1711567852918,-500.0,0.00054246,120]
[320815325,1711567852929,-500.0,0.00054246,120]
[320815326,1711567852940,-581.8,0.00054246,120]
[320815327,1711567852951,-565.63,0.00054246,120]
[320815328,1711567852961,-500.0,0.00054246,120]
[320815329,1711567852972,-500.0,0.00054246,120]
[320815330,1711567852985,-735.8,0.00054246,120]
[320815331,1711567852996,-254.67,0.00054246,120]
[320815332,1711567853007,-500.0,0.00054246,120]
[320815333,1711567853018,-500.0,0.00054246,120]
[320815334,1711567853029,-2907.31,0.00054246,120]
[320815335,1711567853040,-1528.65,0.00054246,120]
[320815336,1711567853051,-500.0,0.00054246,120]
[320815337,1711567853061,-500.0,0.00054246,120]
[320815338,1711567853072,-500.0,0.00054246,120]
[320815339,1711567853083,-525.6,0.00054246,120]
[320815340,1711567853093,-500.0,0.00054246,120]
[320815341,1711567853103,-500.0,0.00054246,120]
[320815342,1711567853113,-1440.57,0.00054246,120]
[320815343,1711567853124,-1247.55,0.00054246,120]
[320815344,1711567853133,-770.57,0.00054246,120]
[320815345,1711567853142,-500.0,0.00054246,120]
[320815346,1711567853152,-634.12,0.00054246,120]
[320815347,1711567853161,-500.0,0.00054246,120]
[320815348,1711567853171,-709.65,0.00054246,120]
[320815349,1711567853182,-500.0,0.00054246,120]
[320815350,1711567853192,-1638.11,0.00054246,120]
[320815351,1711567853202,-500.0,0.00054246,120]
[320815352,1711567853211,-500.0,0.00054246,120]
[320815353,1711567853221,-550.38,0.00054246,120]
[320815354,1711567853230,-500.0,0.00054246,120]
[320815355,1711567853241,-500.0,0.00054246,120]
[320815356,1711567853251,-3229.25,0.00054246,120]
[320815357,1711567853260,-580.84459458,0.00054246,120]
[320815358,1711567853271,-500.0,0.00054246,120]
[320815359,1711567853281,-597.03,0.00054246,120]
[320815360,1711567853291,-500.0,0.00054246,120]
[320815361,1711567853300,-630.38,0.00054246,120]
[320815362,1711567853309,-500.0,0.00054246,120]
[320815363,1711567853319,-500.0,0.00054246,120]
[320815364,1711567853329,-500.0,0.00054246,120]
[320815365,1711567853339,-1222.66,0.00054246,120]
[320815366,1711567853349,-500.0,0.00054246,120]
[320815367,1711567853359,-500.0,0.00054246,120]
[320815368,1711567853369,-500.0,0.00054246,120]
[320815369,1711567853378,-1013.94,0.00054246,120]
[320815370,1711567853387,-500.0,0.00054246,120]
[320815371,1711567853396,-1188.33,0.00054246,120]
[320815372,1711567853405,-500.0,0.00054246,120]
[320815373,1711567853414,-1463.67,0.00054246,120]
[320815374,1711567853424,-538.35,0.00054246,120]
[320815375,1711567853435,-500.0,0.00054246,120]
[320815376,1711567853444,-3150.88,0.00054246,120]
[320815377,1711567853455,-500.0,0.00054246,120]
[320815378,1711567853465,-500.0,0.00054246,7]
[320815379,1711567853476,-857.48,0.00054246,120]
[320815380,1711567853487,-500.0,0.00054246,120]
[320815381,1711567853497,-500.0,0.00054246,120]
[320815382,1711567853508,-500.0,0.00054246,120]
[320815383,1711567853518,-500.0,0.00054246,120]
[320815384,1711567853527,-500.0,0.00054246,120]
[320815385,1711567853538,-500.0,0.00054246,120]
[320815386,1711567853547,-808.79,0.00054246,120]
[320815387,1711567853558,-500.0,0.00054246,120]
[320815388,1711567853570,-986.27,0.00054246,120]
[320815389,1711567853579,-500.0,0.00054246,120]
[320815390,1711567853589,-500.0,0.00054246,120]
[320815391,1711567853601,-1049.83,0.00054246,120]
[320815392,1711567853611,-500.0,0.00054246,120]
[320815393,1711567853621,-524.4,0.00054246,120]
[320815394,1711567853631,-500.0,0.00054246,120]
[320815395,1711567853643,-500.0,0.00054246,120]
[320815396,1711567853654,-500.0,0.00054246,120]
[320815397,1711567853664,-500.0,0.00054246,120]
[320815398,1711567853674,-500.0,0.00054246,120]
[320815399,1711567853685,-500.0,0.00054246,120]
[320815400,1711567853695,-2112.83,0.00054246,120]
[320815401,1711567853704,-1063.63,0.00054246,120]
[320815402,1711567853714,-500.0,0.00054246,120]
[320815403,1711567853724,-554.63,0.00054246,120]
[320815404,1711567853733,-500.0,0.00054246,120]
[320815405,1711567853743,-509.48,0.00054246,120]
[320815406,1711567853753,-5749.77,0.00054246,120]
[320815407,1711567853763,-500.0,0.00054246,120]
[320815408,1711567853773,-500.0,0.00054246,120]
[320815409,1711567853784,-728.48,0.00054246,120]
[320815410,1711567853795,-500.0,0.00054246,120]
[320815411,1711567853806,-500.0,0.00054246,120]
[320815412,1711567853816,-2012.75,0.00054246,120]
[320815413,1711567853827,-612.58,0.00054246,120]
[320815414,1711567853838,-500.0,0.00054246,120]
[320815415,1711567853849,-617.45,0.00054246,120]
[320815416,1711567853859,-500.0,0.00054246,120]
[320815417,1711567853870,-556.42,0.00054246,120]
[320815418,1711567853880,-1882.55,0.00054246,120]
[320815419,1711567853890,-1105.58,0.00054246,120]
[320815420,1711567853901,-1000.0,0.00054246,14]
[320815421,1711567853912,-563.56,0.00054246,120]
[320815422,1711567853922,-1670.82,0.00054246,120]
[320815423,1711567853932,-500.0,0.00054246,120]
[320815424,1711567853943,-500.0,0.00054246,120]
[320815425,1711567853953,-500.0,0.00054246,120]
[320815426,1711567853962,-1620.92,0.00054246,120]
[320815427,1711567853972,-500.0,0.00054246,120]
[320815428,1711567853982,-500.0,0.00054246,120]
[320815429,1711567853992,-500.0,0.00054246,120]
[320815430,1711567854003,-1199.82,0.00054246,120]
[320815431,1711567854012,-944.56,0.00054246,120]
[320815432,1711567854023,-2047.87,0.00054246,120]
[320815433,1711567854033,-1431.13,0.00054246,120]
[320815434,1711567854043,-500.0,0.00054246,120]
[320815435,1711567854053,-1187.4,0.00054246,120]
[320815436,1711567854063,-907.92,0.00054246,120]
[320815437,1711567854073,-1230.47,0.00054246,120]
[320815438,1711567854082,-500.0,0.00054246,120]
[320815439,1711567854091,-500.0,0.00054246,120]
[320815440,1711567854100,-1514.79,0.00054246,120]
[320815441,1711567854110,-943.33,0.00054246,21]
[320815442,1711567854119,-1769.65,0.00054246,120]
[320815443,1711567854128,-237.61997763,0.00054246,120]
[320815444,1711567854137,-1592.63,0.00054246,120]
[320815445,1711567854147,-500.0,0.00054246,120]
[320815446,1711567854156,-500.0,0.00054246,120]
[320815447,1711567854165,-683.65,0.00054246,120]
[320815448,1711567854175,-983.41,0.00054246,120]
[320815449,1711567854185,-2416.95,0.00054246,120]
[320815450,1711567854194,-500.0,0.00054246,120]
[320815451,1711567854203,-8469.08,0.00054246,120]
[320815452,1711567854213,-500.0,0.00054246,120]
[320815453,1711567854222,-500.0,0.00054246,120]
[320815454,1711567854233,-1433.54,0.00054246,120]
[320815455,1711567854243,-1344.75,0.00054246,120]
[320815456,1711567854252,-1376.73,0.00054246,120]
[320815457,1711567854261,-500.0,0.00054246,120]
[320815458,1711567854270,-500.0,0.00054246,120]
[320815459,1711567854280,-869.22,0.00054246,120]
[320815460,1711567854289,-2789.82,0.00054246,120]
[320815461,1711567854299,-2132.95,0.00054246,120]
[320815462,1711567854308,-529.0,0.00054246,120]
[320815463,1711567854421,-1538.71,0.00054246,120]
[320815464,1711567854435,-1438.09,0.00054246,120]
[320815465,1711567854445,-1949.85,0.00054246,120]
[320815466,1711567854457,-500.0,0.00054246,120]
[320815467,1711567854468,-500.93971057,0.00054246,120]
[320815468,1711567854479,-1435.5,0.00054246,120]
[320815469,1711567854489,-1862.76,0.00054246,120]
[320815470,1711567854500,-500.0,0.00054246,120]
[320815471,1711567854510,-500.0,0.00054246,120]
[320815472,1711567854519,-751.06,0.00054246,120]
[320815473,1711567854529,-1077.57,0.00054246,120]
[320815474,1711567854539,-500.0,0.00054246,120]
[320815475,1711567854549,-1714.48,0.00054246,120]
[320815476,1711567854564,-621.57,0.00054246,120]
[320815477,1711567854574,-1602.73,0.00054246,120]
[320815478,1711567854583,-500.0,0.00054246,120]
[320815479,1711567854594,-1673.54,0.00054246,120]
[320815480,1711567854604,-500.0,0.00054246,120]
[320815481,1711567854614,-500.0,0.00054246,120]
[320815482,1711567854624,-1305.13,0.00054246,120]
[320815483,1711567854635,-821.4,0.00054246,120]
[320815484,1711567854646,-1379.77,0.00054246,120]
[320815485,1711567854657,-500.0,0.00054246,120]
[320815486,1711567854667,-615.23,0.00054246,120]
[320815487,1711567854679,-595.44,0.00054246,120]
[320815488,1711567854689,-500.0,0.00054246,120]
[320815489,1711567854699,-584.49,0.00054246,120]
[320815490,1711567854710,-1662.11,0.00054246,120]
[320815491,1711567854721,-500.0,0.00054246,120]
[320815492,1711567854733,-500.0,0.00054246,120]
[320815493,1711567854742,-2397.93,0.00054246,120]
[320815494,1711567854753,-858.74,0.00054246,120]
[320815495,1711567854764,-500.0,0.00054246,120]
[320815496,1711567854774,-500.0,0.00054246,120]
[320815497,1711567854784,-500.0,0.00054246,120]
[320815498,1711567854795,-1015.39,0.00054246,120]
[320815499,1711567854807,-500.0,0.00054246,120]
[320815500,1711567854817,-557.54,0.00054246,120]
[320815501,1711567854828,-500.0,0.00054246,120]
[320815502,1711567854838,-500.0,0.00054246,120]
[320815503,1711567854849,-1425.86,0.00054246,120]
[320815504,1711567854859,-500.0,0.00054246,120]
[320815505,1711567854870,-500.0,0.00054246,120]
[320815506,1711567854882,-1542.51,0.00054246,120]
[320815507,1711567854892,-500.0,0.00054246,120]
[320815508,1711567854902,-500.0,0.00054246,120]
[320815509,1711567854912,-500.0,0.00054246,120]
[320815510,1711567854921,-793.1,0.00054246,120]
[320815511,1711567854935,-1375.1,0.00054246,120]
[320815512,1711567854945,-642.02,0.00054246,120]
[320815513,1711567854955,-2347.84,0.00054246,120]
[320815514,1711567854965,-500.0,0.00054246,120]
[320815515,1711567854975,-1880.63,0.00054246,120]
[320815516,1711567854985,-500.0,0.00054246,120]
[320815517,1711567854996,-1473.38,0.00054246,120]
[320815518,1711567855007,-500.0,0.00054246,120]
[320815519,1711567855017,-205.34947491,0.00054246,120]
[320815520,1711567855027,-500.0,0.00054246,120]
[320815521,1711567855038,-1496.58,0.00054246,120]
[320815522,1711567855048,-988.67,0.00054246,120]
[320815523,1711567855058,-1587.58,0.00054246,120]
[320815524,1711567855067,-500.0,0.00054246,120]
[320815525,1711567855077,-1899.5,0.00054246,120]
[320815526,1711567855087,-500.0,0.00054246,120]
[320815527,1711567855097,-500.0,0.00054246,60]
[320815528,1711567855108,-751.22,0.00054246,120]
[320815529,1711567855117,-380.80550965,0.00054246,120]
[320815530,1711567855127,-829.31,0.00054246,120]
[320815531,1711567855138,-500.0,0.00054246,120]
[320815532,1711567855148,-500.0,0.00054246,120]
[320815533,1711567855160,-500.0,0.00054246,120]
[320815534,1711567855169,-1125.0,0.00054246,120]
[320815535,1711567855178,-500.0,0.00054246,120]
[320815536,1711567855188,-496.82634992,0.00054246,2]
[320815537,1711567855198,-1044.2,0.00054246,120]
[320815538,1711567855208,-1651.35,0.00054246,120]
[320815539,1711567855218,-500.0,0.00054246,120]
[320815540,1711567855228,-500.0,0.00054246,120]
[320815541,1711567855237,-501.98163139,0.00054246,120]
[320815542,1711567855246,-500.0,0.00054246,120]
[320815543,1711567855255,-500.0,0.00054246,120]
[320815544,1711567855265,-816.36,0.00054246,120]
[320815545,1711567855274,-500.0,0.00054246,120]
[320815546,1711567855284,-500.0,0.00054246,120]
[320815547,1711567855294,-500.0,0.00054246,120]
[320815548,1711567855304,-500.0,0.00054246,120]
[320815549,1711567855313,-500.0,0.00054246,120]
[320815550,1711567855323,-500.0,0.00054246,120]
[320815551,1711567855332,-500.0,0.00054246,120]
[320815552,1711567855341,-1332.8,0.00054246,120]
[320815553,1711567855350,-1250.62,0.00054246,120]
[320815554,1711567855360,-1411.74,0.00054246,120]
[320815555,1711567855369,-500.0,0.00054246,120]
[320815556,1711567855380,-296.31691261,0.00054246,120]
[320815557,1711567855389,-500.0,0.00054246,120]
[320815558,1711567855399,-500.0,0.00054246,120]
[320815559,1711567855408,-608.16,0.00054246,120]
[320815560,1711567855419,-500.0,0.00054246,120]
[320815561,1711567855431,-2366.21,0.00054246,120]
[320815562,1711567855440,-500.0,0.00054246,120]
[320815563,1711567855451,-500.0,0.00054246,120]
[320815564,1711567855461,-500.0,0.00054246,120]
[320815565,1711567855471,-500.0,0.00054246,120]
[320815566,1711567855480,-500.0,0.00054246,120]
[320815567,1711567855490,-1880.18,0.00054246,120]
[320815568,1711567855499,-500.0,0.00054246,120]
[320815569,1711567855508,-500.0,0.00054246,120]
[320815570,1711567855517,-500.0,0.00054246,120]
[320815571,1711567855527,-500.0,0.00054246,120]
[320815572,1711567855536,-578.66,0.00054246,120]
[320815573,1711567855548,-733.55,0.00054246,120]